bitfinex-derivatives/quotes_SOLF0:USTF0_20260316
["timestamp","ask_amount","ask_price","bid_price","bid_amount"]
[1773625753945,20.18519132,91.835,91.78,13.21971589]
[1773625754347,20.18519132,91.835,91.78,9.804]
[1773625758646,20.18519132,91.835,91.779,13.55276598]
[1773625758950,20.19096918,91.853,91.8,3.41571589]
[1773625760555,20.19096918,91.853,91.804,9.801]
[1773625764262,20.19096918,91.853,91.804,19.93836089]
[1773625765054,20.19096918,91.853,91.804,9.801]
[1773625765259,20.19096918,91.853,91.804,19.93836089]
[1773625765765,20.19096918,91.853,91.804,9.801]
[1773625765961,20.19096918,91.853,91.804,19.93836089]
[1773625767284,20.19096918,91.853,91.805,10.13736089]
[1773625767566,20.2094521,91.849,91.808,10.13736089]
[1773625768764,20.21744013,91.839,91.795,10.13736089]
[1773625769361,20.21744013,91.839,91.796,10.13736089]
[1773625769665,20.21744013,91.839,91.748,27.10553196]
[1773625769666,20.30085265,91.819,91.775,13.55276598]
[1773625769964,20.30085265,91.819,91.773,13.55276598]
[1773625770162,15.22740257,91.809,91.765,13.55276598]
[1773625770460,15.22740257,91.809,91.762,13.55276598]
[1773625772168,15.22740257,91.809,91.761,13.55276598]
[1773625772968,15.19714885,91.799,91.761,13.55276598]
[1773625773169,15.19714885,91.799,91.755,13.55276598]
[1773625773669,15.19714885,91.799,91.757,9.807]
[1773625774670,18.62995473,91.81,91.757,9.807]
[1773625775171,15.21423884,91.81,91.757,9.807]
[1773625775472,15.21423884,91.81,91.766,9.806]
[1773625776567,3.41571589,91.8,91.754,13.55276598]
[1773625776872,15.21448936,91.799,91.753,13.55276598]
[1773625777373,15.21448936,91.799,91.752,13.55276598]
[1773625778273,15.21448936,91.799,91.751,13.55276598]
[1773625780076,15.21448936,91.799,91.75,13.55276598]
[1773625780472,15.21448936,91.799,91.747,9.808]
[1773625783168,15.21448936,91.799,91.755,9.807]
[1773625787475,15.21448936,91.799,91.763,9.806]
[1773625795285,15.21448936,91.799,91.755,9.807]
[1773625796382,66.97,91.831,91.76,3.41571589]
[1773625796383,15.11874535,91.819,91.76,3.41571589]
[1773625797585,15.11634901,91.814,91.761,9.806]
[1773625798286,15.09525807,91.807,91.761,9.806]
[1773625800893,15.09525807,91.807,91.76,3.41571589]
[1773625801193,15.09525807,91.807,91.748,13.55276598]
[1773625801194,3.41571589,91.87,91.801,3.67133061]
[1773625801393,3.41571589,91.87,91.81,3.41571589]
[1773625801783,3.41571589,91.86,91.813,9.801]
[1773625802988,9.35543136,91.859,91.813,9.801]
[1773625804088,9.35543136,91.879,91.822,9.8]
[1773625804490,9.35543136,91.879,91.823,3.66392377]
[1773625805392,9.35543136,91.879,91.83,3.41571589]
[1773625805594,9.35543136,91.879,91.831,3.72816977]
[1773625806499,9.35543136,91.879,91.84,3.41571589]
[1773625806798,9.35543136,91.879,91.833,3.74715323]
[1773625807199,9.35543136,91.879,91.835,3.7493644]
[1773625807892,9.35543136,91.879,91.84,3.41571589]
[1773625808603,9.35543136,91.879,91.841,3.90064806]
[1773625808802,9.35543136,91.899,91.841,3.90064806]
[1773625809298,9.35543136,91.899,91.87,3.41571589]
[1773625809497,9.35543136,91.899,91.86,3.41571589]
[1773625809698,9.35543136,91.899,91.859,3.92257869]
[1773625812100,9.35543136,91.899,91.852,9.796]
[1773625812402,9.35543136,91.914,91.87,3.41571589]
[1773625812799,9.35543136,91.914,91.87,3.40932351]
[1773625813201,9.35543136,91.914,91.861,3.96512863]
[1773625813706,9.35543136,91.914,91.865,9.795]
[1773625814311,9.35543136,91.914,91.861,3.96512863]
[1773625815503,9.35543136,91.914,91.862,9.795]
[1773625818803,9.35543136,91.914,91.863,3.90369961]
[1773625819203,9.35543136,91.939,91.868,3.90143468]
[1773625819414,9.35543136,91.919,91.86,3.40932351]
[1773625819707,9.35543136,91.919,91.851,3.90143468]
[1773625820303,3.40932351,91.92,91.851,3.90143468]
[1773625820304,9.35543136,91.918,91.851,3.90143468]
[1773625820709,9.35543136,91.918,91.86,3.40932351]
[1773625821614,9.35543136,91.918,91.86,13.20432351]
[1773625822111,9.35543136,91.918,91.869,9.795]
[1773625822312,9.35543136,91.918,91.829,34.28]
[1773625822313,9.35543136,91.918,91.88,7.45529845]
[1773625823311,9.2121541,91.936,91.881,4.17041347]
[1773625823511,32.67,91.999,91.92,3.40932351]
[1773625823807,3.40932351,92.0,91.94,3.40932351]
[1773625824010,13.19132351,91.99,91.931,9.20825374]
[1773625824207,3.40932351,91.98,91.92,3.40932351]
[1773625824405,3.40932351,91.99,91.92,3.40932351]
[1773625824603,3.40932351,91.98,91.92,3.40932351]
[1773625824808,3.40932351,91.97,91.901,9.20825374]
[1773625825013,3.40932351,91.95,91.89,12.61757725]
[1773625825314,32.67,92.013,91.89,12.61757725]
[1773625825315,3.40932351,91.94,91.89,9.20825374]
[1773625825514,9.2121541,91.939,91.89,9.20825374]
[1773625825812,10.8363065,92.024,91.818,13.55276598]
[1773625825813,9.2121541,91.927,91.864,9.20825374]
[1773625826012,9.2121541,91.919,91.864,9.20825374]
[1773625826211,9.2121541,91.919,91.87,3.40932351]
[1773625826411,9.2121541,91.919,91.871,9.20825374]
[1773625827413,12.62147761,91.94,91.881,9.20825374]
[1773625827610,9.2121541,91.939,91.881,9.20825374]
[1773625828613,9.2121541,91.939,91.885,9.793]
[1773625828817,9.2121541,91.939,91.886,9.20825374]
[1773625829014,9.2121541,91.939,91.891,9.20825374]
[1773625830015,9.2121541,91.958,91.891,9.20825374]
[1773625830614,9.2121541,91.958,91.901,9.20825374]
[1773625831308,9.2121541,91.958,91.851,32.67]
[1773625831309,9.2121541,91.958,91.871,9.20825374]
[1773625831615,9.2121541,91.958,91.901,9.791]
[1773625832217,9.2121541,91.956,91.889,9.792]
[1773625832422,9.2121541,91.956,91.89,9.20825374]
[1773625833414,9.2121541,91.956,91.894,9.20825374]
[1773625833718,9.784,91.968,91.894,9.20825374]
[1773625833912,9.2121541,91.967,91.894,9.20825374]
[1773625834514,9.2121541,91.967,91.913,9.20825374]
[1773625835517,9.2121541,91.967,91.916,9.789]
[1773625836214,9.784,91.966,91.906,9.791]
[1773625836420,9.2121541,91.965,91.882,9.20825374]
[1773625837119,9.2121541,91.95,91.887,9.20825374]
[1773625837517,9.2121541,91.95,91.869,9.20825374]
[1773625837717,9.2121541,91.93,91.875,9.794]
[1773625838627,9.2121541,91.928,91.875,9.794]
[1773625839918,32.67,91.959,91.869,9.20825374]
[1773625839919,9.2121541,91.926,91.869,9.20825374]
[1773625840316,9.2121541,91.926,91.865,9.795]
[1773625840522,9.2121541,91.914,91.854,9.20825374]
[1773625842127,9.2121541,91.939,91.865,9.20825374]
[1773625843029,9.2121541,91.939,91.882,9.793]
[1773625843726,9.2121541,91.936,91.882,9.793]
[1773625845629,9.2121541,91.933,91.882,9.793]
[1773625846621,9.2121541,91.93,91.866,10.00023481]
[1773625846831,9.2121541,91.93,91.864,9.20825374]
[1773625847725,9.2121541,91.926,91.87,9.794]
[1773625848327,9.2121541,91.914,91.864,9.20825374]
[1773625848528,9.2121541,91.914,91.86,9.796]
[1773625849420,9.2121541,91.939,91.868,9.20825374]
[1773625849622,9.2121541,91.939,91.869,10.00023481]
[1773625849820,9.2121541,91.939,91.865,10.00023481]
[1773625850019,9.2121541,91.92,91.868,9.795]
[1773625851431,9.2121541,91.917,91.868,9.795]
[1773625853539,8.70681399,91.915,91.868,9.795]
[1773625854229,8.70681399,91.915,91.876,9.794]
[1773625854435,8.38064592,91.945,91.869,8.71470925]
[1773625854628,8.38064592,91.945,91.873,8.71470925]
[1773625854828,8.38064592,91.929,91.873,8.71470925]
[1773625855035,3.40924983,91.94,91.873,8.71470925]
[1773625855336,8.38064592,91.939,91.882,8.71470925]
[1773625856035,8.38064592,91.939,91.884,9.793]
[1773625856233,8.38064592,91.929,91.884,9.793]
[1773625856838,8.38064592,91.919,91.877,10.00023481]
[1773625857339,8.38064592,91.919,91.873,10.00023481]
[1773625857538,8.38064592,91.919,91.873,19.79423481]
[1773625858038,8.38064592,91.919,91.874,8.71470925]
[1773625858232,8.38064592,91.919,91.875,8.71470925]
[1773625859541,8.38064592,91.919,91.881,9.793]
[1773625860039,8.38064592,91.936,91.882,8.71470925]
[1773625860442,8.38064592,91.936,91.87,3.40924983]
[1773625860443,8.38064592,91.936,91.885,8.71470925]
[1773625860839,8.38064592,91.936,91.886,18.50770925]
[1773625861343,8.38064592,91.936,91.89,9.792]
[1773625862736,8.38064592,91.954,91.897,8.71470925]
[1773625862943,8.38064592,91.949,91.897,8.71470925]
[1773625864544,8.38064592,91.948,91.898,9.791]
[1773625865044,8.38064592,91.948,91.903,8.71470925]
[1773625865246,8.38064592,91.948,91.904,8.71470925]
[1773625865547,8.38064592,91.948,91.904,18.71494406]
[1773625865937,8.38064592,91.948,91.9,10.00023481]
[1773625866141,34.26,91.966,91.899,10.00023481]
[1773625866142,8.38064592,91.939,91.899,10.00023481]
[1773625866446,8.38064592,91.939,91.896,9.792]
[1773625867239,8.38064592,91.939,91.896,19.79223481]
[1773625869247,8.38064592,91.939,91.897,10.00023481]
[1773625869647,8.38064592,91.935,91.893,10.00023481]
[1773625870141,8.38064592,91.935,91.901,9.791]
[1773625870843,8.38064592,91.935,91.893,10.00023481]
[1773625871043,8.38064592,91.935,91.896,9.792]
[1773625871949,8.38064592,91.935,91.893,10.00023481]
[1773625872551,8.38064592,91.929,91.893,10.00023481]
[1773625872752,34.26,91.958,91.894,8.71470925]
[1773625872753,3.40805331,91.94,91.894,8.71470925]
[1773625872954,8.38064592,91.939,91.894,8.71470925]
[1773625874650,8.38064592,91.939,91.896,9.792]
[1773625875046,8.38064592,91.939,91.896,18.50670925]
[1773625875352,8.38064592,91.939,91.903,9.791]
[1773625876451,8.38064592,91.939,91.897,8.71470925]
[1773625877151,8.38064592,91.939,91.894,19.79223481]
[1773625879257,8.38064592,91.939,91.895,10.00023481]
[1773625881157,8.38064592,91.939,91.896,10.00023481]
[1773625881459,8.38064592,91.937,91.896,10.00023481]
[1773625882458,8.61498375,91.935,91.896,10.00023481]
[1773625883161,8.61498375,91.929,91.896,10.00023481]
[1773625883354,8.61498375,91.929,91.893,8.60862351]
[1773625883558,12.02303706,91.94,91.893,8.60862351]
[1773625883760,8.61498375,91.939,91.893,8.60862351]
[1773625884958,8.61498375,91.949,91.902,8.60862351]
[1773625885260,8.61498375,91.949,91.897,10.00023481]
[1773625886260,8.61498375,91.949,91.898,10.00023481]
[1773625886562,8.61498375,91.94,91.898,10.00023481]
[1773625886859,8.61498375,91.939,91.898,10.00023481]
[1773625887965,8.61498375,91.939,91.896,10.00023481]
[1773625888166,8.61498375,91.939,91.898,10.00023481]
[1773625889558,8.61498375,91.939,91.898,18.60885832]
[1773625890766,8.61498375,91.939,91.899,9.791]
[1773625890960,8.61498375,91.939,91.898,10.00023481]
[1773625891166,8.61498375,91.929,91.893,10.00023481]
[1773625891567,12.02303706,91.92,91.889,10.00023481]
[1773625893668,8.61498375,91.92,91.889,10.00023481]
[1773625894063,3.40805331,91.93,91.889,10.00023481]
[1773625894269,3.40805331,91.93,91.89,10.00023481]
[1773625894570,12.02303706,91.93,91.89,10.00023481]
[1773625895667,8.61498375,91.929,91.89,10.00023481]
[1773625896064,3.40805331,91.92,91.89,10.00023481]
[1773625896269,8.61498375,91.919,91.891,10.00023481]
[1773625896471,18.40398375,91.919,91.891,10.00023481]
[1773625896669,8.61498375,91.919,91.891,10.00023481]
[1773625897469,8.61498375,91.919,91.892,10.00023481]
[1773625898663,3.40805331,91.91,91.88,13.55276598]
[1773625898868,3.40805331,91.9,91.867,13.55276598]
[1773625899470,8.61498375,91.889,91.847,8.60862351]
[1773625902467,8.61498375,91.889,91.841,8.60862351]
[1773625902468,3.40805331,91.88,91.841,8.60862351]
[1773625902670,8.61498375,91.879,91.831,8.60862351]
[1773625905183,3.40805331,91.87,91.831,8.60862351]
[1773625905679,8.61498375,91.879,91.831,8.60862351]
[1773625905880,9.793,91.884,91.831,8.60862351]
[1773625906074,3.40805331,91.89,91.831,8.60862351]
[1773625906376,8.61498375,91.907,91.851,8.60862351]
[1773625907673,8.61498375,91.907,91.855,8.60862351]
[1773625907870,3.40805331,91.9,91.855,8.60862351]
[1773625913084,3.40805331,91.91,91.855,8.60862351]
[1773625913281,8.98375857,91.92,91.861,8.74798237]
[1773625913480,8.98375857,91.92,91.871,8.74798237]
[1773625914482,8.98375857,91.92,91.874,8.83897603]
[1773625915577,8.98375857,91.92,91.876,8.83897603]
[1773625917483,3.40805331,91.93,91.876,8.83897603]
[1773625917686,3.40805331,91.93,91.878,8.83897603]
[1773625918282,8.32460945,91.929,91.878,8.83897603]
[1773625919586,8.32460945,91.929,91.88,8.83897603]
[1773625920388,8.32460945,91.909,91.854,8.83897603]
[1773625920590,3.40805331,91.9,91.854,8.83897603]
[1773625922288,9.789,91.919,91.856,8.83897603]
[1773625922593,8.32460945,91.918,91.856,8.83897603]
[1773625923591,8.32460945,91.918,91.864,8.83897603]
[1773625923791,9.789,91.917,91.864,8.83897603]
[1773625923995,3.40805331,91.91,91.864,8.83897603]
[1773625925084,18.11360945,91.917,91.864,8.83897603]
[1773625925284,8.32460945,91.899,91.848,8.83897603]
[1773625925891,8.32460945,91.919,91.861,8.83897603]
[1773625926189,13.55738771,91.97,91.861,8.83897603]
[1773625926190,11.73266276,91.9,91.861,8.83897603]
[1773625926388,3.40805331,91.9,91.861,8.83897603]
[1773625926587,8.32460945,91.899,91.822,20.32914897]
[1773625926784,8.32460945,91.899,91.849,8.83897603]
[1773625928491,8.32460945,91.899,91.85,8.83897603]
[1773625929399,8.32460945,91.889,91.84,18.63697603]
[1773625929592,8.32460945,91.889,91.841,8.83897603]
[1773625930490,8.32460945,91.889,91.843,9.797]
[1773625930800,8.32460945,91.889,91.844,8.83897603]
[1773625933491,8.32460945,91.889,91.831,8.83897603]
[1773625933696,8.32460945,91.889,91.795,32.67]
[1773625933697,8.32460945,91.869,91.819,8.83897603]
[1773625933896,8.32460945,91.869,91.821,8.83897603]
[1773625934398,8.32460945,91.883,91.831,8.83897603]
[1773625935390,8.32460945,91.883,91.834,8.83897603]
[1773625935590,8.32460945,91.883,91.799,34.28]
[1773625935591,8.32460945,91.902,91.851,8.83897603]
[1773625936399,8.32460945,91.929,91.871,8.83897603]
[1773625937492,8.32460945,91.929,91.882,9.793]
[1773625937698,3.41184577,91.92,91.871,8.83897603]
[1773625938198,8.32460945,91.929,91.871,8.83897603]
[1773625939491,8.32460945,91.928,91.873,8.83897603]
[1773625940499,8.32460945,91.925,91.873,8.83897603]
[1773625940999,3.41184577,91.92,91.873,8.83897603]
[1773625941894,8.32460945,91.918,91.873,8.83897603]
[1773625942100,3.41184577,91.9,91.859,8.62002951]
[1773625942497,8.78081504,91.904,91.86,8.62002951]
[1773625943000,8.78081504,91.917,91.862,8.62002951]
[1773625943502,34.28,91.949,91.862,8.62002951]
[1773625943503,3.41184577,91.93,91.862,8.62002951]
[1773625943803,8.78081504,91.929,91.862,8.62002951]
[1773625944498,9.788,91.928,91.877,9.794]
[1773625944702,8.78081504,91.927,91.878,8.62002951]
[1773625946505,8.78081504,91.927,91.86,16.89715405]
[1773625946506,8.78081504,91.927,91.88,8.62002951]
[1773625948505,8.78081504,91.927,91.883,9.793]
[1773625948898,9.788,91.935,91.884,8.62002951]
[1773625949101,3.41184577,91.95,91.895,8.62002951]
[1773625949301,12.19266081,91.95,91.895,8.62002951]
[1773625949606,8.78081504,91.939,91.878,8.62002951]
[1773625949809,8.78081504,91.929,91.878,8.62002951]
[1773625950104,3.41184577,91.92,91.878,8.62002951]
[1773625950504,32.67,91.967,91.878,8.62002951]
[1773625950505,8.78081504,91.928,91.878,8.62002951]
[1773625950709,3.41184577,91.92,91.878,8.62002951]
[1773625951202,3.41184577,91.94,91.888,8.62002951]
[1773625951506,8.78081504,91.939,91.888,8.62002951]
[1773625951705,8.78081504,91.939,91.89,9.792]
[1773625953307,3.41184577,91.94,91.888,8.62002951]
[1773625953308,8.78081504,91.937,91.888,8.62002951]
[1773625953508,8.78081504,91.95,91.891,8.62002951]
[1773625953710,8.78081504,91.969,91.901,8.62002951]
[1773625954609,3.41184577,91.97,91.886,13.48530828]
[1773625954610,8.78081504,91.963,91.914,8.62002951]
[1773625954807,8.78081504,91.979,91.921,8.62002951]
[1773625956609,34.26,92.003,91.901,34.26]
[1773625956610,8.78081504,91.997,91.933,8.62002951]
[1773625956810,8.78081504,91.989,91.933,8.62002951]
[1773625957211,8.78081504,91.989,91.934,8.62002951]
[1773625957413,8.78081504,91.989,91.941,8.62002951]
[1773625958008,8.78081504,91.989,91.93,9.788]
[1773625958208,8.78081504,91.989,91.931,8.62002951]
[1773625959512,8.78081504,91.989,91.934,8.62002951]
[1773625961708,8.78081504,91.989,91.936,8.62002951]
[1773625962909,8.78081504,92.003,91.941,8.62002951]
[1773625964016,8.78081504,92.003,91.955,8.62002951]
[1773625964922,8.78081504,92.019,91.955,8.62002951]
[1773625965112,8.78081504,92.019,91.91,13.48530828]
[1773625965113,8.78081504,92.019,91.961,8.62002951]
[1773625966519,8.78081504,92.019,91.965,9.784]
[1773625967519,3.41184577,92.03,91.938,8.62002951]
[1773625967718,3.41184577,92.01,91.961,8.62002951]
[1773625967919,8.78081504,92.009,91.961,8.62002951]
[1773625968118,3.41184577,92.0,91.961,8.62002951]
[1773625968316,8.78081504,92.009,91.961,8.62002951]
[1773625968723,32.67,92.06,91.945,8.62002951]
[1773625968724,3.41184577,92.0,91.945,8.62002951]
[1773625968924,3.41184577,91.99,91.945,8.62002951]
[1773625969517,8.78081504,91.993,91.945,8.62002951]
[1773625969718,8.78081504,91.993,91.948,8.62002951]
[1773625969917,8.78081504,91.989,91.933,8.62002951]
[1773625970328,3.41184577,91.98,91.933,8.62002951]
[1773625970822,3.41184577,91.96,91.915,8.62002951]
[1773625971618,8.78081504,91.984,91.917,8.62002951]
[1773625971820,3.41184577,91.98,91.917,8.62002951]
[1773625972015,8.78081504,91.979,91.917,8.62002951]
[1773625972221,8.27925189,91.969,91.917,8.62002951]
[1773625974626,9.782,91.983,91.922,8.08171253]
[1773625974922,8.33264913,91.979,91.922,8.08171253]
[1773625975326,3.41184577,91.97,91.922,8.08171253]
[1773625977331,3.41184577,91.97,91.925,8.08171253]
[1773625977527,8.33264913,91.979,91.925,8.08171253]
[1773625978130,3.41184577,91.97,91.925,8.08171253]
[1773625978526,11.7444949,91.97,91.925,8.08171253]
[1773625978827,8.33264913,91.969,91.925,8.08171253]
[1773625979727,8.33264913,91.969,91.916,9.79]
[1773625979728,3.41184577,91.97,91.926,8.08171253]
[1773625979917,3.41184577,91.98,91.926,8.08171253]
[1773625980325,11.7444949,91.98,91.926,8.08171253]
[1773625980523,8.33264913,91.979,91.929,8.08171253]
[1773625980826,8.33264913,91.979,91.9,8.08171253]
[1773625981020,8.33264913,91.969,91.911,8.08171253]
[1773625981222,34.24,92.001,91.94,8.08171253]
[1773625981421,8.33264913,92.019,91.961,8.08171253]
[1773625981830,8.33264913,92.019,91.962,8.08171253]
[1773625982628,8.33264913,92.019,91.969,9.784]
[1773625983323,8.33264913,92.019,91.973,8.08171253]
[1773625983523,8.33264913,92.039,91.98,3.41184577]
[1773625983729,8.33264913,92.039,91.981,8.08171253]
[1773625984531,8.33264913,92.038,91.981,8.08171253]
[1773625985030,3.41184577,92.03,91.974,9.783]
[1773625985226,8.33264913,92.029,91.975,8.08171253]
[1773625986032,8.33264913,92.029,91.977,9.783]
[1773625986429,8.33264913,92.029,91.975,8.08171253]
[1773625986725,8.33264913,92.019,91.96,8.08171253]
[1773625986931,8.33264913,92.019,91.961,8.08171253]
[1773625987131,8.33264913,92.019,91.971,8.08171253]
[1773625987334,3.41184577,92.03,91.971,8.08171253]
[1773625987832,8.33264913,92.029,91.971,8.08171253]
[1773625988029,8.33264913,92.029,91.973,8.08171253]
[1773625988234,8.33264913,92.059,92.0,3.41184577]
[1773625988625,8.33264913,92.049,91.999,8.08171253]
[1773625989125,8.33264913,92.066,92.01,11.4935583]
[1773625989329,8.33264913,92.066,92.01,8.08171253]
[1773625990129,8.33264913,92.066,92.02,3.41184577]
[1773625990336,8.33264913,92.066,92.021,8.08171253]
[1773625991237,8.33264913,92.079,92.021,8.08171253]
[1773625991929,0.00062032,92.097,92.06,3.41184577]
[1773625992134,0.00062032,92.097,92.051,8.08171253]
[1773625992934,0.00062032,92.097,92.04,3.41184577]
[1773625992935,8.33264913,92.089,92.035,8.08171253]
[1773625993537,8.33264913,92.089,92.041,8.08171253]
[1773625993739,8.33264913,92.079,92.024,8.08171253]
[1773625997444,8.33264913,92.079,91.993,34.24]
[1773625997445,8.33264913,92.078,92.003,8.08171253]
[1773625998542,8.33264913,92.078,91.99,8.09021529]
[1773625998543,8.33326945,92.097,92.028,8.08171253]
[1773625999748,8.33264913,92.095,92.031,8.08171253]
[1773626000551,8.33264913,92.095,92.033,8.08171253]
[1773626000743,0.00062032,92.097,92.033,8.08171253]
[1773626001353,0.00062032,92.097,92.06,8.08171253]
[1773626001851,0.00062032,92.097,92.061,9.774]
[1773626002446,0.00062032,92.097,92.02,8.09021529]
[1773626002447,0.00062032,92.097,92.042,8.05105465]
[1773626002646,0.00062032,92.097,92.0,8.09021529]
[1773626002853,0.00062032,92.097,92.001,8.05105465]
[1773626003150,8.05270607,92.095,92.039,8.05105465]
[1773626004150,8.05270607,92.095,92.04,9.776]
[1773626004453,9.77062032,92.097,92.041,8.05105465]
[1773626004454,0.00062032,92.097,92.041,8.05105465]
[1773626006455,0.00062032,92.097,92.045,9.776]
[1773626006754,0.00062032,92.097,92.046,8.05105465]
[1773626007251,8.05270607,92.094,92.046,8.05105465]
[1773626007452,8.05270607,92.094,92.034,9.777]
[1773626007756,8.05270607,92.094,92.03,8.05105465]
[1773626009155,0.00062032,92.097,92.032,8.05105465]
[1773626010556,0.00062032,92.097,92.053,8.05105465]
[1773626011151,0.00062032,92.097,92.084,9.772]
[1773626011356,17.81770607,92.148,92.085,8.05105465]
[1773626011557,8.05270607,92.147,92.085,8.05105465]
[1773626012658,32.67,92.169,92.085,8.05105465]
[1773626012659,8.05270607,92.145,92.085,8.05105465]
[1773626013257,8.05270607,92.141,92.085,8.05105465]
[1773626013557,8.05270607,92.141,92.045,34.2]
[1773626013558,8.05270607,92.141,92.061,8.05105465]
[1773626013858,8.05270607,92.141,92.074,8.05105465]
[1773626014560,8.05270607,92.136,92.078,9.772]
[1773626015355,8.05270607,92.133,92.078,9.772]
[1773626016658,8.05270607,92.131,92.074,8.05105465]
[1773626017653,8.05270607,92.131,92.075,9.773]
[1773626017857,8.05270607,92.131,92.075,17.82405465]
[1773626018962,8.05270607,92.131,92.038,34.2]
[1773626018963,8.05270607,92.15,92.082,8.05105465]
[1773626019664,8.05270607,92.129,92.071,9.773]
[1773626019864,8.05270607,92.129,92.071,17.82405465]
[1773626020072,8.05270607,92.129,92.072,8.05105465]
[1773626020565,17.81970607,92.127,92.072,8.05105465]
[1773626020760,8.05270607,92.126,92.061,9.774]
[1773626021161,8.05270607,92.126,92.062,8.05105465]
[1773626021162,9.768,92.124,92.062,8.05105465]
[1773626021366,8.05270607,92.123,92.068,9.773]
[1773626021561,8.05270607,92.123,92.047,8.05105465]
[1773626022061,8.05270607,92.119,92.061,8.05105465]
[1773626022271,8.05270607,92.149,92.061,8.05105465]
[1773626023563,8.05270607,92.128,92.065,17.82505465]
[1773626023766,8.05270607,92.128,92.066,8.05105465]
[1773626024359,9.768,92.124,92.068,8.05105465]
[1773626025362,17.82070607,92.124,92.068,8.05105465]
[1773626025663,8.05270607,92.117,92.068,8.05105465]
[1773626026564,8.05270607,92.114,92.053,8.05105465]
[1773626027665,8.05270607,92.111,92.055,9.775]
[1773626028069,8.05270607,92.108,92.055,9.775]
[1773626029564,8.05270607,92.106,92.055,9.775]
[1773626030168,8.05270607,92.106,92.056,8.05105465]
[1773626032573,7.82623465,92.104,92.056,8.05105465]
[1773626033381,7.82623465,92.104,92.048,9.775]
[1773626033679,7.65371824,92.101,92.048,18.16362639]
[1773626033882,8.09021529,92.08,92.013,13.27303487]
[1773626034080,7.65371824,92.065,92.01,7.96410871]
[1773626034375,7.65371824,92.082,92.01,7.96410871]
[1773626035677,7.65371824,92.082,92.022,7.96410871]
[1773626038676,7.65371824,92.082,92.029,7.96410871]
[1773626038880,7.65371824,92.082,92.031,7.96410871]
[1773626041585,7.65371824,92.082,92.033,7.96410871]
[1773626042984,9.771,92.095,92.041,7.96410871]
[1773626043187,7.65371824,92.116,92.051,7.96410871]
[1773626043383,7.65371824,92.116,92.06,3.39698218]
[1773626043583,7.65371824,92.116,92.051,7.96410871]
[1773626043783,7.65371824,92.129,92.061,7.96410871]
[1773626044089,7.65371824,92.129,92.065,7.96410871]
[1773626044284,7.65371824,92.117,92.065,7.96410871]
[1773626044485,7.65371824,92.109,92.041,7.96410871]
[1773626044688,11.05070042,92.12,92.061,7.96410871]
[1773626044989,7.65371824,92.109,92.061,7.96410871]
[1773626045194,7.65371824,92.099,92.041,7.96410871]
[1773626045683,7.65371824,92.089,92.041,7.96410871]
[1773626047190,17.42471824,92.089,92.041,7.96410871]
[1773626047387,7.65371824,92.088,92.041,7.96410871]
[1773626049585,20.82070042,92.1,92.041,7.96410871]
[1773626049792,7.65371824,92.099,92.041,7.96410871]
[1773626050496,7.65371824,92.099,92.043,9.776]
[1773626051997,7.65371824,92.099,92.048,9.776]
[1773626053793,7.65371824,92.099,92.057,9.774]
[1773626054789,7.65371824,92.099,92.024,34.2]
[1773626054790,3.39698218,92.11,92.061,7.96410871]
[1773626054989,7.65371824,92.116,92.061,7.96410871]
[1773626055698,7.65371824,92.116,92.07,3.39698218]
[1773626055891,7.65371824,92.116,92.071,7.96410871]
[1773626056391,7.65371824,92.116,92.063,7.96410871]
[1773626057496,7.65371824,92.116,92.071,9.773]
[1773626058295,3.39496139,92.12,92.061,7.96410871]
[1773626058601,7.65371824,92.119,92.061,7.96410871]
[1773626059097,3.39496139,92.11,92.061,7.96410871]
[1773626059293,11.04867963,92.11,92.061,7.96410871]
[1773626059499,13.55738771,92.185,92.061,7.96410871]
[1773626059500,3.39496139,92.1,92.061,7.96410871]
[1773626059893,7.65371824,92.109,92.061,7.96410871]
[1773626061495,7.65371824,92.109,92.062,9.774]
[1773626062299,7.65371824,92.109,92.062,17.8109557]
[1773626063103,7.69932906,92.129,92.07,3.39496139]
[1773626063398,7.69932906,92.129,92.071,8.0369557]
[1773626064604,7.69932906,92.128,92.078,9.772]
[1773626066408,3.39496139,92.12,92.071,8.0369557]
[1773626066603,7.69932906,92.119,92.071,8.0369557]
[1773626067499,7.69932906,92.109,92.055,8.0369557]
[1773626067702,3.39496139,92.11,92.055,8.0369557]
[1773626067902,32.67,92.154,92.036,34.2]
[1773626067903,7.69932906,92.123,92.061,8.0369557]
[1773626068203,7.69932906,92.123,92.086,9.772]
[1773626071505,7.69932906,92.149,92.09,3.39496139]
[1773626071708,7.69932906,92.149,92.087,8.0369557]
[1773626071709,3.39496139,92.14,92.087,8.0369557]
[1773626071905,7.69932906,92.139,92.087,8.0369557]
[1773626072507,7.69932906,92.139,92.092,9.771]
[1773626073910,7.69932906,92.139,92.087,8.0369557]
[1773626075707,7.69932906,92.139,92.091,8.0369557]
[1773626075919,7.69932906,92.153,92.091,8.0369557]